Cogmind - Beta 16.1 @@@ ROGUE MODE // 2026.04.25 @ 00:23:45 Player: AngelSpirit Result: Destroyed by 4V-38B(R) with Subdweller Shrapnel Launcher Performance ------------- Evolutions (0) 0 Regions Visited (2) 400 Robots Destroyed (23) 115 Value Destroyed (689) 689 Prototype IDs (13) 260 Alien Tech Used (0) 0 Bonus (0) 0 TOTAL SCORE: 1464 Bonus ------- None Cogmind --------- Core Integrity 0/250 Matter 290/300 Energy 164/170 System Corruption 0% Temperature Cool (5) Movement Rolling (105) Ox1 Location -10/Subcaves Parts ------- > --- POWER (1) -------- Makeshift Power Source > --- PROPULSION (2) --- Wheel Compact Wheel > --- UTILITY (2) ------ Large Storage Unit Seismic Detector > --- WEAPON (2) ------- Subdweller Beam Cannon Battle Cannon > --- INVENTORY (15) --- Light Ion Engine Subdweller Power Source Wheel Wheel Subdweller Monowheel Cobbler Unit Subdweller Laser Subdweller Machine Gun Subdweller Machine Gun Battle Cannon Subdweller Shrapnel Launcher Multitool Peak State ------------ > --- POWER ------------ Makeshift Power Source > --- PROPULSION ------- Wheel Compact Wheel > --- UTILITY ---------- Large Storage Unit Sensor Array > --- WEAPON ----------- Subdweller Laser Subdweller Laser > --- INVENTORY -------- Light Ion Engine Subdweller Power Source Wheel Wheel Compact Wheel Subdweller Monowheel Seismic Detector Subdweller Laser Light Assault Rifle Battle Cannon Battle Cannon Multitool Flamer Hammer Piercing Trap [Rating: 14] Favorites ----------- Power Makeshift Power Source Engine Makeshift Power Source Power Core Light Nuclear Core Propulsion Wheel Treads Light Treads Wheel Wheel Utility Large Storage Unit Device Sensor Array Storage Large Storage Unit Processor Targeting Computer Weapon Battle Cannon Energy Gun Subdweller Laser Energy Cannon Subdweller Beam Cannon Ballistic Gun Light Assault Rifle Ballistic Cannon Battle Cannon Special Weapon Multitool Build | -11 -10 -10 ------- Run | Yrd Mat Sub Slots Evolved . | . . . Power . | . . . Propulsion . | . . . Utility . | . . . Weapon . | . . . Parts Attached 27 | 6 11 10 Power 4 | 1 2 1 Engine 3 | 1 1 1 Core 1 | . 1 . Reactor . | . . . Propulsion 6 | 2 3 1 Treads 2 | . 2 . Leg . | . . . Wheel 4 | 2 1 1 Hover . | . . . Flight . | . . . Utility 6 | 1 4 1 Device 2 | . 1 1 Storage 3 | 1 2 . Processor 1 | . 1 . Hackware . | . . . Protection . | . . . Artifact . | . . . Weapon 11 | 2 2 7 Energy Gun 2 | . . 2 Energy Cannon 2 | . . 2 Ballistic Gun 4 | 2 2 . Ballistic Cannon 2 | . . 2 Launcher . | . . . Special Weapon 1 | . . 1 Impact Weapon . | . . . Slashing Weapon . | . . . Piercing Weapon . | . . . Special Melee Weapon . | . . . Unidentified Prototypes . | . . . Parts Lost 3 | . 2 1 Power 1 | . 1 . Propulsion 1 | . 1 . Utility 1 | . . 1 Weapon . | . . . Highest Loss Streak 2 | . 2 1 To Critical Strikes . | . . . Average Backups 10 | 1 7 12 Power 1 | . . 1 Propulsion 3 | 1 4 3 Utility 1 | . 1 1 Weapon 3 | . 2 4 Tool/Special . | . . . Unused Backups 14 | . . 14 Power 2 | . . 2 Propulsion 3 | . . 3 Utility 1 | . . 1 Weapon 8 | . . 8 Tool/Special . | . . . Average Slot Usage (%) 99 | . 99 99 Engine 13 | . 10 14 Treads 1 | . 4 . Wheel 26 | . 23 28 Device 11 | . 4 13 Storage 14 | . 14 14 Processor 2 | . 9 . Energy Gun 4 | . . 6 Energy Cannon 5 | . . 7 Ballistic Gun 8 | . 28 . Ballistic Cannon 9 | . . 12 Peak Build Rating 14 | 6 9 14 Average Rating 11 | 4 7 12 On Entrance 4 | . 6 7 Avg Prop Armor Cover (%) . | . . . Naked Turns . | . . . Heaviest Build 37 | 11 28 37 Greatest Support 40 | 20 40 26 Greatest Overweight (x) 1 | . 1 1 Average Overweight (x) . | . . 1 Largest Inventory Capacity 15 | 8 15 15 Average Capacity 14 | 7 13 15 Most Carried 15 | 4 10 15 Average Carried 11 | 1 8 13 Final Capacity 15 | 8 15 15 Final Carried 13 | 4 8 13 Class Distribution -------------------- 94% | Mutant 5% | Scavenger-Mutant Dominant Class ---------------- Mutant | -10/Materials Mutant | -10/Subcaves Resources | -11 -10 -10 ----------- Run | Yrd Mat Sub Matter Collected 924 | 265 309 350 Remotely . | . . . Salvage Created 943 | 19 419 505 Parts 56 | 4 18 34 Haulers Intercepted 2 | . 2 . Recyclers Shooed . | . . . Parts Field Recycled . | . . . Retrieved Matter . | . . . Parts Self-Destructed 9 | . . 9 Prevented . | . . . Parts Restored . | . . . Kills | -11 -10 -10 ------- Run | Yrd Mat Sub Combat Hostiles Destroyed 17 | . 7 10 Guns 11 | . 7 4 Cannons 5 | . . 5 Classes Destroyed 9 | 1 5 3 Builder 1 | . 1 . Tunneler 1 | 1 . . Hauler 2 | . 2 . Watcher 2 | . 2 . Swarmer 2 | . 2 . Grunt 5 | . 5 . Sentry 1 | . . 1 Artisan 1 | . . 1 Subdweller 9 | . . 9 Best Kill Streak 5 | 1 5 3 Combat Bots Only 4 | . 4 3 Max Kills in Single Turn 2 | 1 2 1 Gunslinging . | . . . Exploded . | . . . Melee . | . . . Uniques/NPCs Destroyed . | . . . Combat | -11 -10 -10 -------- Run | Yrd Mat Sub Hostile Shots Fired 73 | . 42 31 Missed 22 | . 15 7 Hits 51 | . 27 24 Projectile 51 | . 27 24 AOE 1 | . . 1 Critical Strikes 2 | . 1 1 Damage Taken 1108 | . 571 537 Core 265 | . 72 193 Absorbed by Shields . | . . . Core Remaining (%) 100 | 100 . . Volleys Fired 131 | 2 53 76 Largest 2 | 2 2 2 Hottest 120 | 40 40 120 Shots Fired 203 | 4 106 93 Gun 136 | 4 106 26 Cannon 64 | . . 64 Launcher . | . . . Special 3 | . . 3 Kinetic 150 | 4 106 40 Thermal 53 | . . 53 Explosive . | . . . Electromagnetic . | . . . Robot Hit Streak 17 | 2 12 17 Robot Miss Streak 4 | 1 4 3 Penetration Max . | . . . Secondary Targets 2 | . 2 . Max Gunslinging Chain 1 | . 1 . Shots Hit Robots 114 | 2 67 45 Core Hits 46 | 1 26 19 Critical Kills 2 | . 1 1 Critical Parts Destroyed . | . . . Critical Strikes 2 | . 1 1 Meltdown 1 | . . 1 Destroy 1 | . 1 . Melee Attacks . | . . . Impact . | . . . Slashing . | . . . Piercing . | . . . Sneak Attacks . | . . . Combat Hostiles . | . . . Follow-up Attacks . | . . . Damage Inflicted 1735 | 18 700 1017 Guns 984 | 18 602 364 Cannons 643 | . . 643 Explosions 98 | . 98 . Melee . | . . . Ramming . | . . . Kinetic 874 | 18 602 254 Thermal 763 | . . 763 Explosive 98 | . 98 . Electromagnetic . | . . . Impact . | . . . Slashing . | . . . Piercing . | . . . Highest Corruption . | . . . Average Corruption . | . . . Corruption Purged . | . . . Corruption Blocked . | . . . Overload Shots . | . . . Overflow Damage 51 | . 51 . Projectiles . | . . . Explosions 51 | . 51 . Melee . | . . . Knockbacks 1 | . . 1 Impact . | . . . Kinetic 1 | . . 1 Secondary . | . . . Self-Inflicted Damage 75 | . 75 . Shots 2 | . 2 . Rammed . | . . . Targets Rammed . | . . . Kicked . | . . . Crushed . | . . . Highest Temperature 80 | . 51 80 Average Temperature 15 | . 12 17 Received Heat Transfer 201 | . 141 60 Siege Activations . | . . . Martial Activations . | . . . Shielding Activations . | . . . Robots Disrupted . | . . . Combat Hostiles . | . . . Robots Corrupted . | . . . Combat Hostiles . | . . . Parts Fried . | . . . Impact Corruptions . | . . . Robots Melted 1 | . . 1 Combat Hostiles 1 | . . 1 Parts Melted . | . . . Heat Transferred 993 | . . 993 Parts Sabotaged . | . . . Parts Stolen . | . . . Parts Stripped . | . . . Power Chain Reactions . | . . . Alert | -11 -10 -10 ------- Run | Yrd Mat Sub Maximum Alert Level . | . . . Low Security (%) 100 | 100 100 . Level 1 . | . . . Level 2 . | . . . Level 3 . | . . . Level 4 . | . . . Level 5 . | . . . High Security . | . . . Max Security . | . . . Peak Influence 100 | 5 100 . Initial . | . . . Average 36 | 1 38 . Influence Increases 404 | 5 379 20 Destroy 0b10 Robot/C 160 | . 140 20 Destroy 0b10 Robot/NC 30 | 5 25 . Destroy Leader 48 | . 48 . Successful Hack 25 | . 25 . Select Force Hacks 60 | . 60 . Disable Machine 30 | . 30 . Destroy Structure 21 | . 21 . Lose Combat Pursuer 30 | . 30 . Influence Decreases 404 | 5 370 29 Entered New Map 5 | . . 5 Time Decay 379 | 5 350 24 Lost Part 20 | . 20 . Squads Dispatched 2 | . 2 . Investigation 2 | . 2 . Extermination . | . . . Reinforcement . | . . . Assault . | . . . Garrison . | . . . Intercept . | . . . Searches Triggered . | . . . Construction Impeded . | . . . Haulers Reinforced . | . . . Active Scanning Responses . | . . . Cargo Convoy Interrupts . | . . . Stealth | -11 -10 -10 --------- Run | Yrd Mat Sub Distress Signals 1 | . 1 . Communications Jammed . | . . . Distress Signals . | . . . Times Spotted 26 | . 15 11 Peak Tracking Total 6 | . 6 2 Tactical Retreats 2 | . 2 . Traps | -11 -10 -10 ------- Run | Yrd Mat Sub Traps Triggered 3 | . 2 1 Indirectly 1 | . 1 . Trap Hack Attempts . | . . . Triggered . | . . . Disarmed . | . . . Reprogrammed . | . . . Reused 1 | . . 1 Traps Extracted . | . . . Installed 1 | . . 1 Triggered . | . . . Most Traps Carried 1 | . . 1 Machines | -11 -10 -10 ---------- Run | Yrd Mat Sub Machines Disabled 2 | . 2 . Max in Single Turn 1 | . 1 . Machines Repaired . | . . . Machines Dismantled . | . . . Machines Sabotaged . | . . . Overloaded Fab Kills . | . . . Hacking | -11 -10 -10 --------- Run | Yrd Mat Sub Machines Accessed 13 | . 11 2 Terminals 8 | . 8 . Fabricators . | . . . Repair Stations 1 | . 1 . Recycling Units 2 | . 2 . Scanalyzers . | . . . Garrison Access . | . . . Total Hacks 34 | . 29 5 Successful 14 | . 9 5 Failed 20 | . 20 . Catastrophic 6 | . 6 . Database Lockouts . | . . . Manual 22 | . 22 . Terminals 20 | . 20 . Fabricators . | . . . Repair Stations 5 | . 5 . Recycling Units 4 | . 4 . Scanalyzers . | . . . Garrison Access . | . . . Terminal Hacks 9 | . 4 5 Record 4 | . . 4 Part Schematic 1 | . 1 . Robot Schematic 1 | . 1 . Terminal Index 1 | . 1 . Hauler Manifests 1 | . 1 . Proto ID Catalog 1 | . . 1 Fabricator Hacks . | . . . Repair Station Hacks . | . . . Recycling Unit Hacks 1 | . 1 . Retrieve Components 1 | . 1 . Scanalyzer . | . . . Garrison Access Hacks . | . . . Unauthorized Hacks 4 | . 4 . Terminals 2 | . 2 . Botnet 1 | . 1 . Skim 1 | . 1 . Fabricators . | . . . Repair Stations . | . . . Recycling Units 2 | . 2 . Tunnel 2 | . 2 . Scanalyzers . | . . . Garrison Access . | . . . Data Cores Recovered . | . . . Used . | . . . Hacking Detections 9 | . 9 . Full Trace Events . | . . . Feedback Events . | . . . Feedback Blocked . | . . . Robot Schematics Acquired 1 | . 1 . Robots Built . | . . . Authchips . | . . . Time . | . . . Total Robot Build Rating . | . . . Part Schematics Acquired 1 | . 1 . Parts Built . | . . . Authchips . | . . . Time . | . . . Total Part Build Rating . | . . . Part Studies Acquired . | . . . Parts Repaired . | . . . Time . | . . . Parts Recycled . | . . . Recycled Matter . | . . . Retrieved Matter . | . . . Retrieved Components 1 | . 1 . Parts Scanalyzed . | . . . Part Schematics Acquired . | . . . Parts Damaged . | . . . Bothacking | -11 -10 -10 ------------ Run | Yrd Mat Sub Used RIF Installer . | . . . Robots Hacked . | . . . Non-combat . | . . . Combat . | . . . Robot Hacks Applied . | . . . Relay Couplers Released . | . . . Fabnet Peak Effective % . | . . . Robots Rewired . | . . . Allies Hacked . | . . . Hacks Repelled . | . . . Allies | -11 -10 -10 -------- Run | Yrd Mat Sub Total Allies . | . . . Largest Group . | . . . Highest-Rated Group . | . . . Highest-Rated Ally . | . . . Total Orders . | . . . Ally Attacks . | . . . Total Damage . | . . . Kills . | . . . Allies Corrupted . | . . . Allies Melted . | . . . Intel | -11 -10 -10 ------- Run | Yrd Mat Sub Active Infowar (turns) 2129 | . 237 1892 Sensors 1598 | . . 1598 Seismic 531 | . 237 294 Robot Analysis Total . | . . . Derelict Logs Recovered 1 | . . 1 Drone Launches . | . . . Drone Recoveries . | . . . Exploration | -11 -10 -10 ------------- Run | Yrd Mat Sub Turns Passed 2760 | 54 794 1912 Spaces Moved 1882 | 42 623 1217 Core 1 | 1 . . Treads 44 | . 44 . Legs . | . . . Wheels 1837 | 41 579 1217 Hover . | . . . Flight . | . . . Fastest Speed 50 | 50 80 105 Average Speed 102 | 79 98 105 Slowest Speed 160 | 80 160 105 Overloaded Moves . | . . . Propulsion Burnouts . | . . . Robots Hopped . | . . . Potential Cave-ins . | . . . Cave-ins Triggered . | . . . Exploration Rate (%) 48 | 3 95 47 Regions Visited 2 Branch Regions 1 Pre-discovered Areas 3 | . 2 1 Known Exits Taken . | . . . Unknown Exits Taken 2 | 1 1 . Scrap Searched 9 | . . 9 Spaces Dug 1 | . . 1 Terrain Destroyed 26 | . 23 3 Melee . | . . . Projectile 3 | . . 3 AOE 23 | . 23 . Terrain Rammed . | . . . Walls Destroyed . | . . . Machines Disabled . | . . . Actions | -11 -10 -10 --------- Run | Yrd Mat Sub Total 2530 | 55 715 1760 Wait 430 | 2 5 423 Move 1880 | 41 622 1217 Hop . | . . . Pick Up 30 | 4 9 17 Fast Attach 10 | 6 3 1 Attach 5 | . 3 2 Detach . | . . . Swap 22 | . 12 10 Drop 21 | . 8 13 Fire 131 | 2 53 76 Melee . | . . . Ram . | . . . Kick . | . . . Crush . | . . . Escape Stasis . | . . . Rewire . | . . . Trap 1 | . . 1 Miscellaneous . | . . . Route ------- -11/Scrapyard -10/Materials (discovered 6 exits: [*Mat x3] / [*Min x2] / *Sub) -10/Subcaves (discovered 1 exit: [*Mat]) History --------- Turn | Location | Event 17 | -11/Scrapyard | Discovered new exit (range 15) 55 | -11/Scrapyard | Entered Materials 245 | -10/Materials | Discovered new exit (range 15) 300 | -10/Materials | Build established: Mutant 425 | -10/Materials | Discovered new exit (range 6) 490 | -10/Materials | Discovered new exit (range 6) 563 | -10/Materials | Discovered new exit (range 7) 681 | -10/Materials | Discovered new exit (range 14) 839 | -10/Materials | Discovered new exit (range 11) 849 | -10/Materials | Entered Subcaves 849 | -10/Subcaves | Learned Materials interactive machine intel 920 | -10/Subcaves | Visited Clippyterm 923 | -10/Subcaves | Learned Factory stockpile data 996 | -10/Subcaves | A swath of the cavern ceiling suddenly collapsed 1215 | -10/Subcaves | Shifting Twisted Machinery released Flamer 1221 | -10/Subcaves | Learned location of Zion (-7) 1221 | -10/Subcaves | Met a Zionite searching for "candidates" 1260 | -10/Subcaves | Shifting Twisted Machinery released Sub. Laser 1320 | -10/Subcaves | Discovered new exit (range 14) 1348 | -10/Subcaves | Core integrity fell below 50% 1422 | -10/Subcaves | A swath of the cavern ceiling suddenly collapsed 1589 | -10/Subcaves | Ambushed by Subdwellers from Twisted Machinery 2430 | -10/Subcaves | Visited 4L-MR0's lab 2543 | -10/Subcaves | Disturbed a concealed Subdweller 2553 | -10/Subcaves | Core integrity fell below 20% 2761 | -10/Subcaves | Destroyed by 4V-38B(R) with Subdweller Shrapnel Launcher Last Messages --------------- 02602_ Searching scrap... 02602_ Found Sub. Shrapnel Launcher. 02602_ Found Spk. Treads. 02602_ Found 31 Matter. 02603_ Searching scrap... 02603_ Found Sub. Machine Gun. 02603_ Found 46 Matter. 02604_ Searching scrap... 02604_ Found Barrage Gun. 02604_ Found Mak. Spear. 02604_ Found 40 Matter. 02606_ Searching scrap... 02606_ Found Battle Rifle. 02606_ Found 50 Matter. 02611_ Searching scrap... 02611_ Found Sub. Laser. 02611_ Found Sub. Machine Gun. 02611_ Found 36 Matter. 02696_ 99-E78(R) destroyed. 02729_ Sensor Array destroyed. Map ----- +----------------------------------------------------+ | ???????? ????? ?????????????????????????????? | | ????????# ????? ?????????????????????????????? | | ????????# ???? ?????????????????????????????? | | ??????### ???# ##???????????????????????????? | | ?????? ### ###?????????????????????????? | | ?????# #?####????????????????????? | | ?????# #?# ##???????????????????? | | ?????# #?# ##??????????????????? | | ????? ## ### ##?????????????????? | | ????????????????## ## ##????????????????? | | ?????????????????#### ##???????????????? | | ????????????????????# ##??????????????? | | ????????????????????## ## #???????????? | | ?????????????????????# ###?????????? | | ?????????????????????## ??????? | | ??????????????????????# ??????? | | ??????????????????????# ## ##????????? | | ??????????????????????## #?? #?????????? | | ???????????????????????### #???## ##?????????? | | ????????????????????????## #?????? #??????????? | | ????????????????????????# #???????????????????? | | ????????????????????????# #???????????????????? | | ????????????????????????# ##???????????????????? | | ????????????????????????## #???????????????????? | | ?????????????????????##?##R #???????????????????? | | ????????????????????## ?#@ #???????????????????? | | ??????????????????##?" ?## ##???????????????????? | | ?????????????????## ## ### ##???????????????????? | | ?????????????????# " "#" #???????????????????? | | ?????????????????# ## ###??????????????????? | | ?????????????????## #%[ #??????????????????? | | ??????????????????# [ ##??????????????????? | | ?????????????????# ## ##???????????????????? | | ?????????????????##??# ##????????????????????? | | ?????????????????????# ###???????????????????? | | ????????????????????## ##??????????????????? | | ???????????????????## #??????????????????? | | ??????????????????## ####??????????????????? | | ??????????????????# ##?????????????????????? | | ??????????????????# ##??????????????????????? | | ??????????????????# ##??????????????????????? | | ??????????????????# #??????????????????????? | | ??????????????????# ## #??????????????????????? | | ??????????????????# ######??????????????????????? | | ??????????????????# #???????????????????????????? | | ????????##??#?##?## #???????????????????????????? | | ??# # # # ## ##???????????????????????????? | | ?? #????????????????????????????? | | ?? #????????????????????????????? | | ??? # # ## ## ##???????????????????????????? | +----------------------------------------------------+ Best States ------------- Heat Dissipation 25 Energy Generation 15 Energy Capacity 250 Matter Stores 300 Matter Capacity 300 Sight Range 16 Robot Scan Range 14 Terrain Scan Density 10 Evasion (%) 44 Targeting Accuracy 5 Recoil Reduction 2 Item Schematics ----------------- Hcp. Storage Unit | -10/Materials | Hacked Robot Schematics ------------------ M-13 Machinist | -10/Materials | Hacked Fabricated ------------ Nothing Repaired ---------- Nothing Studied --------- None Alien Tech Used ----------------- None Achievements -------------- None Challenges ------------ None Game ------ Seed PlexusBiomechanicalFlakker Manual? 0 Play Time 00:18:27 Cumulative 742.5 hours Start 2026.04.25 @ 00:05:30 End 2026.04.25 @ 00:23:45 Sessions 1 Manual Loads 0 Difficulty Rogue Special Mode None Game No. 214 Rogue 214 Adventurer 0 Explorer 0 Win Type - Total 28 Types 10/3/7/1/1/0/2/1/1/2 Lore% 95 Gallery% 87 Achievement% 81 Wizard Run 0 Options --------- Layout 1 ASCII 0 Keyboard 0 Movement Mouse Keybinds 0 Fullscreen 2 Font 32/SmallcapsGlow Map View 50x35 Zoom Use 0% Tactical HUD 1 Map Filters NONE Filters NONE Steam 1 RUN: 074ddb9f-d228-48bf-a427-653a69d1e99a